Cogmind - Beta 9.3 @@@ ROGUE MODE // 2019.12.23 @ 16:27:15 // Winter2019/RPGLIKE Player: Demise Result: Destroyed by S-27 Virus with Autogun Performance ------------- Evolutions (4) 2000 Regions Visited (17) 3400 Robots Destroyed (128) 640 Value Destroyed (4046) 4046 Prototype IDs (46) 920 Alien Tech Used (0) 0 Bonus (2302) 2302 TOTAL SCORE: 13308 Bonus ------- High Alert Combat Kills 642 Follower Combat Kills 523 Entered Garrisons 400 Used RIF Installer 1000 Aligned with FarCom 300 Met Data Miner 300 Friendly Fire -863 Cogmind --------- Core Integrity 0/600 Matter 140/300 Energy 195/200 System Corruption 0% Temperature Cool (65) Movement Flying (23) Location -6/Lower Caves Parts ------- > --- POWER (2) -------- Micro Nuclear Core Micro Nuclear Core > --- PROPULSION (5) --- Improved VTOL Module Improved VTOL Module Improved VTOL Module Improved VTOL Module Improved VTOL Module > --- UTILITY (7) ------ Advanced Sensor Array Advanced Signal Interpreter Improved Terrain Scanner Salvage Targeting Computer Heart of Steel > --- WEAPON (4) ------- Phase Cannon Gauss Cannon Proton Missile Launcher Power Sword > --- INVENTORY (8) ---- Improved Transmission Jammer Maneuvering Thrusters Focal Shield Improved Shield Generator System Backup Module Recalibrator Plasma Cannon Great Axe Peak State ------------ > --- POWER ------------ Micro Nuclear Core Micro Nuclear Core > --- PROPULSION ------- Improved VTOL Module Improved VTOL Module Improved VTOL Module Improved VTOL Module Improved VTOL Module > --- UTILITY ---------- Advanced Sensor Array Advanced Signal Interpreter Improved Terrain Scanner Salvage Targeting Computer Heart of Steel > --- WEAPON ----------- Phase Cannon Gauss Cannon Proton Missile Launcher Power Sword > --- INVENTORY -------- Improved Transmission Jammer Maneuvering Thrusters Focal Shield Improved Shield Generator System Backup Module Recalibrator Plasma Cannon Great Axe [Rating: 83] Favorites ----------- Power Micro Nuclear Core Engine Ion Engine Power Core Micro Nuclear Core Propulsion Improved VTOL Module Wheel Wheel Hover Unit Hover Unit Flight Unit Improved VTOL Module Utility Improved Terrain Scanner Device Improved Terrain Scanner Processor Salvage Targeting Computer Weapon Gauss Cannon Energy Gun Medium Laser Energy Cannon Plasma Cannon Ballistic Gun High-powered Shotgun Ballistic Cannon Gauss Cannon Launcher Proton Missile Launcher Special Weapon Mining Laser Slashing Weapon Katana Build | -11 -10 -10 -9 -9 -9 -8 -8 -8 -7 -7 -7 -7 -7 -7 -6 -6 -6 ------- Run | Scr Mat Min Mat Min Exi Min Mat Gar Fac Gar Fac Low Low Dat Pro Fac Low Slots Evolved 14 | . 3 . 1 . 3 . 3 . 1 . 1 1 . . . 1 . Power 1 | . . . . . . . 1 . . . . . . . . . . Propulsion 4 | . . . . . 3 . 1 . . . . . . . . . . Utility 6 | . 2 . 1 . . . 1 . 1 . . . . . . 1 . Weapon 3 | . 1 . . . . . . . . . 1 1 . . . . . Parts Attached 78 | 4 14 . 10 1 1 . 7 . 10 . 24 1 1 . . 5 . Power 13 | 1 1 . 1 . . . 1 . 4 . 4 . . . . 1 . Engine 10 | 1 1 . 1 . . . 1 . 4 . 2 . . . . . . Core 3 | . . . . . . . . . . . 2 . . . . 1 . Reactor . | . . . . . . . . . . . . . . . . . . Propulsion 18 | 1 6 . . 1 1 . 5 . 2 . 2 . . . . . . Treads . | . . . . . . . . . . . . . . . . . . Leg . | . . . . . . . . . . . . . . . . . . Wheel 2 | 1 1 . . . . . . . . . . . . . . . . Hover 1 | . 1 . . . . . . . . . . . . . . . . Flight 15 | . 4 . . 1 1 . 5 . 2 . 2 . . . . . . Utility 20 | 1 4 . 1 . . . 1 . 3 . 8 . . . . 2 . Device 18 | 1 3 . 1 . . . . . 3 . 8 . . . . 2 . Storage . | . . . . . . . . . . . . . . . . . . Processor 2 | . 1 . . . . . 1 . . . . . . . . . . Hackware . | . . . . . . . . . . . . . . . . . . Protection . | . . . . . . . . . . . . . . . . . . Artifact . | . . . . . . . . . . . . . . . . . . Weapon 27 | 1 3 . 8 . . . . . 1 . 10 1 1 . . 2 . Energy Gun 3 | 1 . . 1 . . . . . . . 1 . . . . . . Energy Cannon 5 | . 2 . 1 . . . . . . . 1 . . . . 1 . Ballistic Gun 4 | . . . 2 . . . . . 1 . 1 . . . . . . Ballistic Cannon 4 | . . . . . . . . . . . 4 . . . . . . Launcher 3 | . . . 1 . . . . . . . . 1 . . . 1 . Special Weapon 3 | . 1 . 2 . . . . . . . . . . . . . . Impact Weapon . | . . . . . . . . . . . . . . . . . . Slashing Weapon 5 | . . . 1 . . . . . . . 3 . 1 . . . . Piercing Weapon . | . . . . . . . . . . . . . . . . . . Special Melee Weapon . | . . . . . . . . . . . . . . . . . . Unidentified Prototypes 7 | . . . 1 . . . 1 . 2 . 2 . . . . 1 . Parts Lost 1 | . . . . . . . . . . . 1 . . . . . . Power 1 | . . . . . . . . . . . 1 . . . . . . Propulsion . | . . . . . . . . . . . . . . . . . . Utility . | . . . . . . . . . . . . . . . . . . Weapon . | . . . . . . . . . . . . . . . . . . Highest Loss Streak 1 | . . . . . . . . . . . 1 . . . . . . Average Slot Usage (%) 95 | . 98 100 100 100 83 72 84 100 100 100 97 100 98 94 94 90 88 Engine 8 | . 16 14 13 12 10 9 10 14 13 13 5 . . . . . . Core 3 | . . . . . . . . . . . 6 11 9 5 5 10 11 Flight 23 | . 12 14 13 12 10 9 18 35 33 33 31 29 29 29 29 27 27 Device 25 | . 26 28 29 37 31 27 23 21 24 26 25 23 23 23 23 18 16 Processor 11 | . 6 14 13 12 10 9 15 14 13 13 12 11 11 11 11 11 11 Energy Gun 2 | . 10 . 5 . . . . . . . . . . . . . . Energy Cannon 4 | . 15 14 7 . . . . . . . . 5 5 5 5 5 5 Ballistic Gun 1 | . . . . 12 10 9 7 7 6 6 . . . . . . . Ballistic Cannon 2 | . . . . . . . . . . . 5 5 5 5 5 5 5 Launcher 1 | . . . . . . . . . . . . 4 5 5 5 5 5 Special Weapon 2 | . 5 14 9 . . . . . . . . . . . . . . Slashing Weapon 5 | . . . 3 12 10 9 7 7 6 6 8 5 5 5 5 5 5 Naked Turns . | . . . . . . . . . . . . . . . . . . Heaviest Build 49 | 6 12 11 15 14 14 14 19 19 33 33 40 44 44 37 37 49 49 Greatest Support 93 | 10 16 19 19 19 87 87 93 45 45 45 45 45 45 45 45 50 50 Greatest Overweight (x) 1 | 1 1 . . . . . . . . . . . . . . 1 . Average Overweight (x) . | . . . . . . . . . . . . . . . . . . Largest Inventory Capacity 8 | . 1 1 3 3 3 3 5 5 5 5 8 8 8 8 8 8 8 Average Capacity 4 | . . 1 2 3 3 3 3 5 5 5 6 8 8 8 8 8 8 Most Carried 8 | . 1 1 3 3 3 2 5 5 5 5 8 8 6 6 6 8 8 Average Carried 4 | . . 1 2 2 2 2 2 5 5 5 6 6 5 6 6 7 8 Final Capacity 8 | . 1 1 3 3 3 3 5 5 5 5 8 8 8 8 8 8 8 Final Carried 8 | . 1 1 3 2 3 2 5 5 5 5 8 5 6 6 6 8 8 Class Distribution -------------------- 41% | Hauler-Scout 25% | Mutant 18% | Scout 10% | Scavenger-Scout Dominant Class ---------------- Mutant | -10/Materials Mutant | -10/Mines Mutant | -9/Materials Scavenger-Scout | -9/Mines Scout | -9/Exiles Scout | -8/Mines Scout | -8/Materials Scavenger-Scout | -8/Garrison Scout | -7/Factory Scout | -7/Garrison Hauler-Scout | -7/Factory Hauler-Scout | -7/Lower Caves Hauler-Scout | -7/Lower Caves Hauler-Scout | -7/Data Miner Hauler-Scout | -6/Proximity Caves Hauler-Scout | -6/Factory Hauler-Scout | -6/Lower Caves Resources | -11 -10 -10 -9 -9 -9 -8 -8 -8 -7 -7 -7 -7 -7 -7 -6 -6 -6 ----------- Run | Scr Mat Min Mat Min Exi Min Mat Gar Fac Gar Fac Low Low Dat Pro Fac Low Matter Collected 2338 | 225 155 . 123 64 . 86 91 . 110 45 798 109 28 . 42 143 319 Remotely . | . . . . . . . . . . . . . . . . . . Salvage Created 4090 | 110 551 . 1498 122 . 64 91 . 152 96 706 417 . . 127 40 116 Parts 241 | 5 39 . 88 13 . 9 8 . 17 2 34 13 . . 9 2 2 Haulers Intercepted 11 | . 1 . 4 . . . 1 . 1 . 4 . . . . . . Recyclers Shooed . | . . . . . . . . . . . . . . . . . . Parts Field Recycled . | . . . . . . . . . . . . . . . . . . Retrieved Matter . | . . . . . . . . . . . . . . . . . . Parts Self-Destructed 23 | . . . . . . . . . . . . 11 1 . 11 . . Prevented 3 | . . . . . . . . . . . . 2 . . . . 1 Kills | -11 -10 -10 -9 -9 -9 -8 -8 -8 -7 -7 -7 -7 -7 -7 -6 -6 -6 ------- Run | Scr Mat Min Mat Min Exi Min Mat Gar Fac Gar Fac Low Low Dat Pro Fac Low Combat Hostiles Destroyed 89 | . 13 . 29 5 . 5 2 . 4 1 17 8 . . 4 . 1 Melee 14 | . . . 3 3 . . . . 2 1 5 . . . . . . Guns 27 | . 7 . 9 2 . 5 2 . 2 . . . . . . . . Cannons 34 | . 5 . 10 . . . . . . . 10 5 . . 4 . . AOE 13 | . 1 . 6 . . . . . . . 2 3 . . . . 1 Classes Destroyed 15 | 2 6 . 3 . . . . . 1 . . 1 . . . . 2 Worker 7 | . 1 . 1 1 . . . . 1 . 1 . . . . 2 . Builder 2 | . 1 . 1 . . . . . . . . . . . . . . Tunneler 2 | 1 . . . . . 1 . . . . . . . . . . . Hauler 11 | . 1 . 4 . . . 1 . 1 . 4 . . . . . . Recycler 8 | 1 1 . 4 . . . . . . . 2 . . . . . . Minesweeper 1 | . . . . . . . . . . . . . . . . . 1 Operator 4 | . 1 . . . . . . . . . 2 . . . . 1 . Swarmer 32 | . 5 . 8 5 . 5 . . . . 2 3 . . 3 . 1 Grunt 37 | . 8 . 14 . . . 1 . . . 11 3 . . . . . Duelist 2 | . . . 2 . . . . . . . . . . . . . . Protector 1 | . . . 1 . . . . . . . . . . . . . . Sentry 14 | . . . 4 . . . 1 . 3 1 4 . . . 1 . . Hunter 1 | . . . . . . . . . 1 . . . . . . . . Programmer 2 | . . . . . . . . . . . . 2 . . . . . Decomposer 2 | . . . . . . . . . . . . . . . . . 2 Samaritan 1 | . . . . . . . . . . . . . . . . . 1 Best Kill Streak 7 | 2 6 . 7 4 . 4 2 . 2 1 3 5 . . 4 1 1 Combat Bots Only 6 | . 4 . 6 3 . 4 1 . 2 1 3 5 . . 4 . 1 Max Kills in Single Turn 3 | 1 2 . 2 1 . 1 1 . 1 1 3 2 . . 1 1 1 Gunslinging . | . . . . . . . . . . . . . . . . . . Exploded 2 | . 1 . 2 . . . . . . . 2 2 . . . . 1 Melee 1 | . . . 1 1 . . . . 1 1 1 . . . . . . Uniques/NPCs Destroyed . | . . . . . . . . . . . . . . . . . . Combat | -11 -10 -10 -9 -9 -9 -8 -8 -8 -7 -7 -7 -7 -7 -7 -6 -6 -6 -------- Run | Scr Mat Min Mat Min Exi Min Mat Gar Fac Gar Fac Low Low Dat Pro Fac Low Damage Taken 4577 | . 613 27 787 86 . 109 102 . 464 371 853 307 . . 448 266 144 Core 3674 | . 497 22 611 64 . 88 87 . 373 290 692 244 . . 378 214 114 Absorbed by Shields 1377 | . 35 12 282 36 . 46 40 . 184 156 325 115 . . 146 . . Redirected to Core 2783 | . 358 11 554 52 . 57 49 . 277 221 502 208 . . 240 155 99 Core Remaining (%) 75 | 100 . 67 . . . 73 . 84 . . . . . . 54 . . Volleys Fired 397 | 6 93 14 95 10 . 19 11 . 6 2 100 16 3 . 15 3 4 Largest 3 | 1 2 1 2 1 . 1 1 . 1 1 1 2 2 . 3 2 2 Hottest 167 | 50 106 100 156 25 . 25 25 . 28 28 55 128 128 . 167 138 138 Shots Fired 430 | 6 97 14 96 10 . 19 11 . 6 2 100 25 6 . 26 6 6 Gun 160 | 6 57 . 42 10 . 19 11 . 6 2 7 . . . . . . Cannon 219 | . 29 1 44 . . . . . . . 93 18 6 . 18 6 4 Launcher 20 | . . . 3 . . . . . . . . 7 . . 8 . 2 Special 31 | . 11 13 7 . . . . . . . . . . . . . . Kinetic 168 | . . . 1 10 . 19 11 . 6 2 93 9 3 . 9 3 2 Thermal 146 | 6 68 13 33 . . . . . . . . 9 3 . 9 3 2 Explosive 3 | . . . 3 . . . . . . . . . . . . . . Electromagnetic 113 | . 29 1 59 . . . . . . . 7 7 . . 8 . 2 Robot Hit Streak 16 | 5 12 . 16 4 . 3 5 . 5 4 13 5 1 . 9 11 3 Robot Miss Streak 5 | 1 3 . 3 5 . 3 2 . 1 . 3 2 2 . 1 1 2 Penetration Max 1 | . . . . . . . . . . . 1 . . . . . . Secondary Targets . | . . . . . . . . . . . . . . . . . . Shots Hit Robots 342 | 5 56 . 71 11 . 10 11 . 23 14 81 17 2 . 19 12 10 Core Hits 180 | 3 26 . 53 6 . 6 7 . 11 3 40 12 . . 5 3 5 Critical Hits 18 | . . . 4 . . . . . . . 11 3 . . . . . Critical Kills 8 | . . . 4 . . . . . . . 3 1 . . . . . Critical Parts Destroyed 9 | . . . . . . . . . . . 8 1 . . . . . Melee Attacks 227 | . . . 10 15 . 6 12 . 49 31 39 9 1 7 12 23 13 Impact . | . . . . . . . . . . . . . . . . . . Slashing 227 | . . . 10 15 . 6 12 . 49 31 39 9 1 7 12 23 13 Piercing . | . . . . . . . . . . . . . . . . . . Sneak Attacks 20 | . . . . 2 . . 1 . 4 . 3 1 . . . 4 5 Combat Hostiles 3 | . . . . . . . . . 2 . . . . . . 1 . Follow-up Attacks . | . . . . . . . . . . . . . . . . . . Damage Inflicted 12448 | 61 1162 . 2194 407 . 183 270 . 1000 520 3594 918 52 . 373 797 917 Guns 1807 | 61 541 . 621 37 . 183 186 . 73 44 61 . . . . . . Cannons 3756 | . 370 . 654 . . . . . . . 1889 413 52 . 264 84 30 Explosions 2196 | . 227 . 705 . . . . . . . 750 294 . . 109 . 111 Melee 4665 | . . . 214 370 . . 84 . 927 476 894 211 . . . 713 776 Ramming . | . . . . . . . . . . . . . . . . . . Kinetic 2760 | . . . . 37 . 183 186 . 73 44 1889 186 . . 109 53 . Thermal 2734 | 61 792 . 636 . . . . . . . 750 227 52 . 155 31 30 Explosive 429 | . . . 429 . . . . . . . . . . . . . . Electromagnetic 1860 | . 370 . 915 . . . . . . . 61 294 . . 109 . 111 Impact . | . . . . . . . . . . . . . . . . . . Slashing 4665 | . . . 214 370 . . 84 . 927 476 894 211 . . . 713 776 Piercing . | . . . . . . . . . . . . . . . . . . Highest Corruption 2 | . 1 1 . . . . . . 2 2 2 1 1 1 1 . . Average Corruption 1 | . 1 1 . . . . . . 2 2 1 1 1 1 1 . . Corruption Purged 2 | . . . . . . . . . . . 2 . . . . . . Effects 11 | . . 1 . . . . . . 5 3 1 . . . 1 . . Message Errors 1 | . . 1 . . . . . . . . . . . . . . . Heat Flow Errors 3 | . . . . . . . . . 1 1 1 . . . . . . Energy Discharges 1 | . . . . . . . . . 1 . . . . . . . . Data Loss (minor) 3 | . . . . . . . . . 2 . . . . . 1 . . Targeting Errors 3 | . . . . . . . . . 1 2 . . . . . . . Overload Shots . | . . . . . . . . . . . . . . . . . . Overflow Damage 1281 | . 16 . 25 153 . . 54 . 109 1 263 . . . . 281 379 Projectiles 105 | . 16 . 11 . . . . . . . 63 . . . . 15 . Explosions 129 | . . . 8 . . . . . . . 121 . . . . . . Melee 1047 | . . . 6 153 . . 54 . 109 1 79 . . . . 266 379 Knockbacks 25 | . . . . . . . . . . . 22 2 . . 1 . . Impact . | . . . . . . . . . . . . . . . . . . Kinetic 24 | . . . . . . . . . . . 21 2 . . 1 . . Secondary 1 | . . . . . . . . . . . 1 . . . . . . Self-Inflicted Damage 293 | . 67 . 112 . . . . . . . 99 4 . . 5 . 6 Shots 10 | . 2 . 3 . . . . . . . 2 1 . . 1 . 1 Rammed . | . . . . . . . . . . . . . . . . . . Targets Rammed . | . . . . . . . . . . . . . . . . . . Kicked . | . . . . . . . . . . . . . . . . . . Crushed . | . . . . . . . . . . . . . . . . . . Highest Temperature 439 | 40 278 73 439 . . 11 157 215 300 89 220 171 45 . 110 182 60 Average Temperature 78 | 19 95 30 78 . . 10 55 104 110 54 50 70 22 . 52 110 30 Received Heat Transfer 1219 | . 273 . 282 . . 6 42 . 116 102 236 42 . . 45 66 9 Effects 12 | . 6 . 3 . . . . 1 1 . 1 . . . . . . Shutdowns 1 | . . . 1 . . . . . . . . . . . . . . Energy Bleed 5 | . 2 . 1 . . . . 1 1 . . . . . . . . Interference 6 | . 4 . 1 . . . . . . . 1 . . . . . . Siege Activations . | . . . . . . . . . . . . . . . . . . Robots Corrupted 1 | . . . 1 . . . . . . . . . . . . . . Combat Hostiles 1 | . . . 1 . . . . . . . . . . . . . . Parts Fried 10 | . 1 . 7 . . . . . . . 1 1 . . . . . Impact Corruptions . | . . . . . . . . . . . . . . . . . . Robots Melted . | . . . . . . . . . . . . . . . . . . Combat Hostiles . | . . . . . . . . . . . . . . . . . . Parts Melted 6 | . 2 . . . . . . . 1 . . 2 . . 1 . . Heat Transferred 4338 | 185 1841 . 938 . . . . . . . 500 400 100 . 300 37 37 Parts Sabotaged . | . . . . . . . . . . . . . . . . . . Parts Stolen 1 | . . . . . . . . . . . . . 1 . . . . Parts Stripped . | . . . . . . . . . . . . . . . . . . Power Chain Reactions 9 | . 3 . 5 . . . . . . . 1 . . . . . . Missiles Intercepted . | . . . . . . . . . . . . . . . . . . Alert | -11 -10 -10 -9 -9 -9 -8 -8 -8 -7 -7 -7 -7 -7 -7 -6 -6 -6 ------- Run | Scr Mat Min Mat Min Exi Min Mat Gar Fac Gar Fac Low Low Dat Pro Fac Low Peak Influence 1207 | 10 476 240 990 540 . 224 215 169 331 218 1207 . . . . 255 . Average Influence 333 | 4 291 163 563 462 . 143 135 148 167 173 510 . . . . 84 . Maximum Alert Level 4 | . 2 1 3 2 . 1 1 . 1 1 4 . . . . 1 . Low Security (%) 36 | 100 27 81 9 . . 85 82 100 58 52 8 . . . . 84 . Level 1 30 | . 45 18 20 2 . 14 17 . 41 47 38 . . . . 15 . Level 2 22 | . 27 . 30 97 . . . . . . 31 . . . . . . Level 3 8 | . . . 39 . . . . . . . 12 . . . . . . Level 4 2 | . . . . . . . . . . . 9 . . . . . . Level 5 . | . . . . . . . . . . . . . . . . . . High Security . | . . . . . . . . . . . . . . . . . . Max Security . | . . . . . . . . . . . . . . . . . . Squads Dispatched 26 | . 3 . 5 . . . 2 . 3 . 9 . . . . 4 . Investigation 12 | . 2 . 3 . . . 1 . 2 . 2 . . . . 2 . Extermination 1 | . . . . . . . . . . . 1 . . . . . . Reinforcement 10 | . 1 . 1 . . . 1 . 1 . 4 . . . . 2 . Assault 1 | . . . 1 . . . . . . . . . . . . . . Garrison 2 | . . . . . . . . . . . 2 . . . . . . Intercept . | . . . . . . . . . . . . . . . . . . Construction Impeded 3 | . . . . . . . 1 . . . 2 . . . . . . Haulers Reinforced 1 | . . . . . . . . . 1 . . . . . . . . Stealth | -11 -10 -10 -9 -9 -9 -8 -8 -8 -7 -7 -7 -7 -7 -7 -6 -6 -6 --------- Run | Scr Mat Min Mat Min Exi Min Mat Gar Fac Gar Fac Low Low Dat Pro Fac Low Distress Signals 12 | . 4 . 2 . . . . . 5 . 1 . . . . . . Communications Jammed . | . . . . . . . . . . . . . . . . . . Distress Signals . | . . . . . . . . . . . . . . . . . . Times Spotted 252 | . 32 3 48 12 . 15 10 3 16 11 44 15 10 . 11 14 8 Peak Tracking Total 11 | . 7 3 7 4 . 6 11 3 6 5 4 8 4 . 5 10 7 Tactical Retreats 42 | . 8 1 2 3 . 2 . . 7 4 4 3 1 . 5 2 . Traps | -11 -10 -10 -9 -9 -9 -8 -8 -8 -7 -7 -7 -7 -7 -7 -6 -6 -6 ------- Run | Scr Mat Min Mat Min Exi Min Mat Gar Fac Gar Fac Low Low Dat Pro Fac Low Traps Triggered 6 | . 1 . . . . . . 1 2 . 2 . . . . . . Indirectly . | . . . . . . . . . . . . . . . . . . Trap Hack Attempts . | . . . . . . . . . . . . . . . . . . Triggered . | . . . . . . . . . . . . . . . . . . Disarmed . | . . . . . . . . . . . . . . . . . . Reprogrammed . | . . . . . . . . . . . . . . . . . . Reused . | . . . . . . . . . . . . . . . . . . Traps Extracted . | . . . . . . . . . . . . . . . . . . Installed . | . . . . . . . . . . . . . . . . . . Triggered 2 | . 1 . . . . . . . . . . . 1 . . . . Exploded 1 | . . . . . . 1 . . . . . . . . . . . Machines | -11 -10 -10 -9 -9 -9 -8 -8 -8 -7 -7 -7 -7 -7 -7 -6 -6 -6 ---------- Run | Scr Mat Min Mat Min Exi Min Mat Gar Fac Gar Fac Low Low Dat Pro Fac Low Machines Disabled 68 | . 15 9 8 4 . 5 1 . 6 1 17 . . . . 2 . Max in Single Turn 11 | . 1 1 1 1 . 1 1 . 1 1 11 . . . . 1 . Garrison Relay 1 | . . . . . . . . . . 1 . . . . . . . Machines Sabotaged . | . . . . . . . . . . . . . . . . . . Garrisons Compromised 1 | . . . . . . . . . . . 1 . . . . . . Overloaded Fab Kills . | . . . . . . . . . . . . . . . . . . Fab Network Shutdowns . | . . . . . . . . . . . . . . . . . . Hacking | -11 -10 -10 -9 -9 -9 -8 -8 -8 -7 -7 -7 -7 -7 -7 -6 -6 -6 --------- Run | Scr Mat Min Mat Min Exi Min Mat Gar Fac Gar Fac Low Low Dat Pro Fac Low Machines Accessed 58 | . 9 . 9 . 1 . 4 . 5 . 13 3 2 4 . 8 . Terminals 31 | . 7 . 8 . . . 2 . 3 . 5 . . . . 6 . Fabricators 5 | . . . . . . . . . 1 . 2 . . . . 2 . Repair Stations 4 | . 1 . . . . . . . . . 3 . . . . . . Recycling Units 3 | . 1 . 1 . . . . . . . 1 . . . . . . Scanalyzers 3 | . . . . . . . 1 . . . 2 . . . . . . Garrison Access 2 | . . . . . . . 1 . 1 . . . . . . . . Total Hacks 173 | . 35 . 26 . 1 . 11 . 11 . 31 10 5 25 . 18 . Successful 120 | . 27 . 16 . 1 . 7 . 7 . 15 10 5 25 . 7 . Failed 53 | . 8 . 10 . . . 4 . 4 . 16 . . . . 11 . Catastrophic 9 | . . . 1 . . . . . 1 . 5 . . . . 2 . Database Lockouts . | . . . . . . . . . . . . . . . . . . Manual 51 | . 15 . 10 . 1 . 3 . 4 . 8 1 . . . 9 . Terminals 86 | . 23 . 25 . . . 6 . 7 . 12 . . . . 13 . Fabricators 10 | . . . . . . . . . 2 . 3 . . . . 5 . Repair Stations 17 | . 10 . . . . . . . . . 7 . . . . . . Recycling Units 5 | . 2 . 1 . . . . . . . 2 . . . . . . Scanalyzers 10 | . . . . . . . 3 . . . 7 . . . . . . Garrison Access 4 | . . . . . . . 2 . 2 . . . . . . . . Terminal Hacks 65 | . 8 . 8 . 1 . 2 . 2 . 1 10 5 25 . 3 . Record 23 | . . . . . . . . . . . . 8 4 11 . . . Part Schematic 5 | . . . . . . . . . . . . . . 5 . . . Robot Schematic 6 | . . . . . . . . . . . . . . 6 . . . Robot Analysis 1 | . . . . . . . . . . . 1 . . . . . . Prototype ID Bank 7 | . 3 . . . . . . . . . . . . 3 . 1 . Open Door 3 | . . . . . . . . . . . . 2 1 . . . . Branch Access Points 6 | . 2 . 1 . . . 1 . 1 . . . . . . 1 . Terminal Index 1 | . 1 . . . . . . . . . . . . . . . . Unreport Threat 2 | . 1 . . . . . . . 1 . . . . . . . . Dispatch Records 1 | . . . 1 . . . . . . . . . . . . . . Patrol Status 1 | . . . 1 . . . . . . . . . . . . . . Hauler Manifests 2 | . . . 1 . . . 1 . . . . . . . . . . Registered Components 2 | . 1 . 1 . . . . . . . . . . . . . . Registered Prototypes 1 | . . . 1 . . . . . . . . . . . . . . Zone Layout 3 | . . . 2 . . . . . . . . . . . . 1 . EX-Prototype ID Bank 1 | . . . . . 1 . . . . . . . . . . . . Fabricator Hacks 4 | . . . . . . . . . 1 . 1 . . . . 2 . Network Status 1 | . . . . . . . . . . . . . . . . 1 . Load Schematic 1 | . . . . . . . . . . . . . . . . 1 . Build 2 | . . . . . . . . . 1 . 1 . . . . . . Repair Station Hacks 12 | . 9 . . . . . . . . . 3 . . . . . . Scan Component 6 | . 4 . . . . . . . . . 2 . . . . . . Repair 5 | . 4 . . . . . . . . . 1 . . . . . . Refit 1 | . 1 . . . . . . . . . . . . . . . . Recycling Unit Hacks 5 | . 2 . 1 . . . . . . . 2 . . . . . . Report Inventory 3 | . 1 . 1 . . . . . . . 1 . . . . . . Retrieve Matter 1 | . . . . . . . . . . . 1 . . . . . . Retrieve Components 1 | . 1 . . . . . . . . . . . . . . . . Scanalyzer 7 | . . . . . . . 2 . . . 5 . . . . . . Insert Component 3 | . . . . . . . 1 . . . 2 . . . . . . Analyze 4 | . . . . . . . 1 . . . 3 . . . . . . Garrison Access Hacks 3 | . . . . . . . 1 . 2 . . . . . . . . Unlock Access 2 | . . . . . . . 1 . 1 . . . . . . . . Coupler Status 1 | . . . . . . . . . 1 . . . . . . . . Unauthorized Hacks 72 | . 22 . 17 . . . 5 . 6 . 11 . . . . 11 . Terminals 24 | . 8 . 7 . . . 2 . 2 . 3 . . . . 2 . Assimilate 1 | . 1 . . . . . . . . . . . . . . . . Botnet 21 | . 7 . 7 . . . . . 2 . 3 . . . . 2 . Operators 2 | . . . . . . . 2 . . . . . . . . . . Fabricators . | . . . . . . . . . . . . . . . . . . Repair Stations . | . . . . . . . . . . . . . . . . . . Recycling Units . | . . . . . . . . . . . . . . . . . . Scanalyzers . | . . . . . . . . . . . . . . . . . . Garrison Access . | . . . . . . . . . . . . . . . . . . Data Cores Recovered . | . . . . . . . . . . . . . . . . . . Used . | . . . . . . . . . . . . . . . . . . Hacking Detections 41 | . 8 . 7 . . . 3 . 5 . 10 . . . . 8 . Full Trace Events 10 | . 1 . 2 . . . 1 . 2 . 2 . . . . 2 . Feedback Events 1 | . 1 . . . . . . . . . . . . . . . . Corruption 1 | . 1 . . . . . . . . . . . . . . . . Feedback Blocked . | . . . . . . . . . . . . . . . . . . Robot Schematics Acquired 6 | . . . . . . . . . . . . . . 6 . . . Robots Built 1 | . . . . . . . . . 1 . . . . . . . . Matter 219 | . . . . . . . . . 219 . . . . . . . . Time 58 | . . . . . . . . . 58 . . . . . . . . Total Robot Build Rating 3 | . . . . . . . . . 3 . . . . . . . . Part Schematics Acquired 8 | . . . . . . . 1 . . . 2 . . 5 . . . Parts Built . | . . . . . . . . . . . . . . . . . . Matter 190 | . . . . . . . . . . . 190 . . . . . . Time 31 | . . . . . . . . . . . 31 . . . . . . Total Part Build Rating . | . . . . . . . . . . . . . . . . . . Parts Repaired 5 | . 4 . . . . . . . . . 1 . . . . . . Time 135 | . 116 . . . . . . . . . 19 . . . . . . Parts Recycled . | . . . . . . . . . . . . . . . . . . Recycled Matter . | . . . . . . . . . . . . . . . . . . Retrieved Matter . | . . . . . . . . . . . . . . . . . . Retrieved Components 6 | . 6 . . . . . . . . . . . . . . . . Parts Scanalyzed 3 | . . . . . . . 1 . . . 2 . . . . . . Part Schematics Acquired 3 | . . . . . . . 1 . . . 2 . . . . . . Parts Damaged . | . . . . . . . . . . . . . . . . . . Bothacking | -11 -10 -10 -9 -9 -9 -8 -8 -8 -7 -7 -7 -7 -7 -7 -6 -6 -6 ------------ Run | Scr Mat Min Mat Min Exi Min Mat Gar Fac Gar Fac Low Low Dat Pro Fac Low Used RIF Installer 2 | . . . . . . . . 1 . 1 . . . . . . . Coupler Efficiency 1 | . . . . . . . . . . 1 . . . . . . . Robots Hacked . | . . . . . . . . . . . . . . . . . . Non-combat . | . . . . . . . . . . . . . . . . . . Combat . | . . . . . . . . . . . . . . . . . . Robot Hacks Applied . | . . . . . . . . . . . . . . . . . . Relay Couplers Released 1 | . . . . . . . . . . 1 . . . . . . . Machine Destruction 1 | . . . . . . . . . . 1 . . . . . . . Robots Rewired . | . . . . . . . . . . . . . . . . . . Allies Hacked . | . . . . . . . . . . . . . . . . . . Hacks Repelled . | . . . . . . . . . . . . . . . . . . Allies | -11 -10 -10 -9 -9 -9 -8 -8 -8 -7 -7 -7 -7 -7 -7 -6 -6 -6 -------- Run | Scr Mat Min Mat Min Exi Min Mat Gar Fac Gar Fac Low Low Dat Pro Fac Low Total Allies 18 | . . 3 . 1 . . . . 1 . 12 . . . 1 . . Largest Group 6 | . . 3 3 1 . . . . 1 . 6 . . . 1 . . Highest-Rated Group 186 | . . 40 40 31 . . . . 12 . 186 . . . 94 . . Highest-Rated Ally 94 | . . 16 16 31 . . . . 12 . 31 . . . 94 . . Total Orders . | . . . . . . . . . . . . . . . . . . Ally Attacks 147 | . . . 26 8 . . . . . . 109 . . . 4 . . Total Damage 2134 | . . . 277 127 . . . . . . 1638 . . . 92 . . Kills 24 | . . . 2 . . . . . . . 21 . . . 1 . . Allies Corrupted . | . . . . . . . . . . . . . . . . . . Allies Melted . | . . . . . . . . . . . . . . . . . . Intel | -11 -10 -10 -9 -9 -9 -8 -8 -8 -7 -7 -7 -7 -7 -7 -6 -6 -6 ------- Run | Scr Mat Min Mat Min Exi Min Mat Gar Fac Gar Fac Low Low Dat Pro Fac Low Robot Analysis Total 1 | . . . . . . . . . . . 1 . . . . . . Derelict Logs Recovered 7 | . . 1 . . . . . . . . . 3 1 . 1 . 1 Drone Launches . | . . . . . . . . . . . . . . . . . . Drone Recoveries . | . . . . . . . . . . . . . . . . . . Exploration | -11 -10 -10 -9 -9 -9 -8 -8 -8 -7 -7 -7 -7 -7 -7 -6 -6 -6 ------------- Run | Scr Mat Min Mat Min Exi Min Mat Gar Fac Gar Fac Low Low Dat Pro Fac Low Turns Passed 6008 | 33 830 259 597 243 124 205 164 25 481 169 1126 321 131 270 475 381 174 Spaces Moved 9605 | 20 808 465 684 383 267 278 224 96 984 294 1911 742 506 209 633 711 390 Core 7 | 6 1 . . . . . . . . . . . . . . . . Treads . | . . . . . . . . . . . . . . . . . . Legs . | . . . . . . . . . . . . . . . . . . Wheels 168 | 14 154 . . . . . . . . . . . . . . . . Hover 2 | . 2 . . . . . . . . . . . . . . . . Flight 9428 | . 651 465 684 383 267 278 224 96 984 294 1911 742 506 209 633 711 390 Fastest Speed 23 | 50 40 40 40 40 40 50 23 23 23 23 23 23 23 23 23 23 23 Average Speed 30 | 76 47 40 40 40 45 50 33 23 23 23 23 23 23 23 23 32 23 Slowest Speed 120 | 100 120 40 40 40 50 50 50 23 26 23 26 23 23 23 23 93 23 Overloaded Moves . | . . . . . . . . . . . . . . . . . . Propulsion Burnouts . | . . . . . . . . . . . . . . . . . . Robots Hopped 44 | . 12 6 19 1 . . . . . . . 1 2 . . 3 . Cave-ins Triggered . | . . . . . . . . . . . . . . . . . . Exploration Rate (%) 59 | 3 99 99 69 92 70 69 20 40 34 61 44 69 68 73 74 21 58 Regions Visited 17 Branch Regions 9 Pre-discovered Areas 3 | . . . . 1 . . . . . . . 1 . 1 . . . Known Exits Taken 11 | . 1 . 1 . . 1 1 . 1 . 1 1 1 1 1 1 . Unknown Exits Taken 4 | 1 . 1 . 1 1 . . . . . . . . . . . . Scrap Searched 12 | . . 2 . . . 1 . . . . . 2 4 . 1 . 2 Spaces Dug 113 | . 4 4 6 3 . 5 10 . 20 9 13 6 1 7 11 10 4 Terrain Destroyed 275 | . 21 5 62 3 . 5 10 . 20 9 93 7 3 7 12 11 7 Melee 103 | . . . 4 3 . 5 10 . 20 9 13 6 1 7 11 10 4 Projectile 32 | . 4 4 4 . . . . . . . 12 1 2 . 1 1 3 AOE 140 | . 17 1 54 . . . . . . . 68 . . . . . . Actions | -11 -10 -10 -9 -9 -9 -8 -8 -8 -7 -7 -7 -7 -7 -7 -6 -6 -6 --------- Run | Scr Mat Min Mat Min Exi Min Mat Gar Fac Gar Fac Low Low Dat Pro Fac Low Total 11812 | 29 1119 491 866 439 269 315 281 98 1160 346 2440 849 510 419 917 816 448 Wait 1302 | . 190 17 31 26 . 10 17 1 78 20 279 64 1 204 253 70 41 Move 9508 | 19 784 452 649 380 266 277 224 95 984 293 1910 739 502 208 632 704 390 Hop 38 | . 11 6 15 1 . . . . . . . 1 1 . . 3 . Pick Up 26 | . 3 1 7 . 1 . 1 . . . 8 2 . . . 3 . Fast Attach 54 | 4 9 . 6 . 1 . 7 . 7 . 16 . 1 . . 3 . Attach 3 | . . . 1 . . . . . . . . 1 . . . 1 . Detach 4 | . . . 1 . . . . . . . . . 1 . . 2 . Swap 22 | . 5 . 3 1 . . . . 3 . 9 . . . . 1 . Drop 63 | . 9 1 11 2 1 1 2 . 9 . 21 3 . . . 3 . Fire 397 | 6 93 14 95 10 . 19 11 . 6 2 100 16 3 . 15 3 4 Melee 224 | . . . 10 15 . 6 12 . 49 31 36 9 1 7 12 23 13 Ram . | . . . . . . . . . . . . . . . . . . Kick . | . . . . . . . . . . . . . . . . . . Crush . | . . . . . . . . . . . . . . . . . . Escape Stasis 9 | . . . . . . . . 2 . . 7 . . . . . . Rewire . | . . . . . . . . . . . . . . . . . . Trap . | . . . . . . . . . . . . . . . . . . Miscellaneous 162 | . 15 . 37 4 . 2 7 . 24 . 54 14 . . 5 . . Route ------- -11/Scrapyard -10/Materials (discovered 5 exits: *Mat x3 / *Min x2) -10/Mines (discovered 2 exits: *Mat x2) -9/Materials (discovered 6 exits: *Mat x3 / *Min x2 / Sto) -9/Mines (discovered 3 exits: *Mat x2 / *Exi) -9/Exiles -8/Mines -8/Materials -8/Garrison -7/Factory (discovered 4 exits: *Fac / Low x2 / Gar) -7/Garrison (discovered 3 exits: *Fac x3) -7/Factory (discovered 3 exits: *Fac x2 / *Low) -7/Lower Caves -7/Lower Caves (discovered 2 exits: *Fac / *Dat) -7/Data Miner -6/Proximity Caves -6/Factory (discovered 3 exits: *Fac / *Low x2) -6/Lower Caves History --------- Turn | Location | Event 10 | -11/Scrapyard | Discovered new exit (range 14) 34 | -11/Scrapyard | Entered Materials 43 | -10/Materials | Upgraded with Weapon slot (x1) 46 | -10/Materials | Discovered new exit (range 15) 125 | -10/Materials | Identified exit to Mines 269 | -10/Materials | Discovered new exit (range 16) 291 | -10/Materials | Core integrity fell below 50% 300 | -10/Materials | Build established: Mutant 306 | -10/Materials | Upgraded with Utility slot (x1) 374 | -10/Materials | Reached level 2 476 | -10/Materials | Discovered new exit (range 8) 506 | -10/Materials | Upgraded with Utility slot (x1) 639 | -10/Materials | Repaired Lgt. EM Pulse Cannon 673 | -10/Materials | Repaired Med. Laser 706 | -10/Materials | Repaired Imp. Terrain Scanner 734 | -10/Materials | Repaired Flight Unit 799 | -10/Materials | Discovered new exit (range 5) 864 | -10/Materials | Entered Mines 866 | -10/Mines | Reached level 3 896 | -10/Mines | Discovered new exit (range 12) 1047 | -10/Mines | Assisted by bots powering up and referring to "LRC-V3" 1057 | -10/Mines | Discovered new exit (range 12) 1090 | -10/Mines | Learned location of 1 exit from Materials 1102 | -10/Mines | Received a Rocket Launcher from a helpful Derelict 1123 | -10/Mines | Entered Materials 1123 | -9/Materials | Accompanied by 3 allies 1124 | -9/Materials | Identified exit to Materials 1125 | -9/Materials | Reached level 4 1175 | -9/Materials | Identified exit to Mines 1175 | -9/Materials | Identified exit to Storage 1182 | -9/Materials | Reached level 5 1363 | -9/Materials | Reached level 6 1494 | -9/Materials | Reached level 7 1512 | -9/Materials | Discovered exit to Materials (range 3) 1523 | -9/Materials | First assault squad dispatched 1552 | -9/Materials | Core integrity fell below 50% 1630 | -9/Materials | Upgraded with Utility slot (x1) 1677 | -9/Materials | Discovered exit to Materials (range 3) 1720 | -9/Materials | Entered Mines 1722 | -9/Mines | Reached level 8 1731 | -9/Mines | Escorted by a lone wolf Derelict 1750 | -9/Mines | Discovered exit to Materials (range 10) 1754 | -9/Mines | Learned location of Storage (-9) 1914 | -9/Mines | Deemed a non-threat by the Exiles lab entrance 1914 | -9/Mines | Discovered new exit (range 5) 1925 | -9/Mines | Build established: Scavenger-Scout 1935 | -9/Mines | Discovered exit to Materials (range 10) 1963 | -9/Mines | Entered Exiles 1975 | -9/Exiles | Met 8R-AWN 1981 | -9/Exiles | Met EX-HEX 1993 | -9/Exiles | Met EX-BIN 1998 | -9/Exiles | Aligned with FarCom system 1998 | -9/Exiles | Given EX-Vault access code 2008 | -9/Exiles | Opened EX-Vault 2013 | -9/Exiles | Upgraded with Propulsion slot (x3) 2013 | -9/Exiles | Found Flying Fortress v7 2026 | -9/Exiles | Warned to stay clear of 0b10 Research branches 2040 | -9/Exiles | Met EX-DEC 2083 | -9/Exiles | Discovered new exit (range 11) 2087 | -9/Exiles | Left Exiles lab with Flying Fortress v7 2087 | -9/Exiles | Entered Mines 2093 | -8/Mines | Reached level 9 2288 | -8/Mines | Discovered exit to Materials (range 4) 2292 | -8/Mines | Entered Materials 2294 | -8/Materials | Reached level 10 2297 | -8/Materials | Upgraded with Utility slot (x1) 2298 | -8/Materials | Build established: Scout 2388 | -8/Materials | Upgraded with Propulsion slot (x1) 2398 | -8/Materials | Upgraded with Power slot (x1) 2456 | -8/Materials | Identified exit to Garrison 2456 | -8/Materials | Entered Garrison 2458 | -8/Garrison | Reached level 11 2477 | -8/Garrison | Discovered new exit (range 10) 2479 | -8/Garrison | Identified exit to Factory 2480 | -8/Garrison | Installed Relay Interface Framework 2481 | -8/Garrison | Entered Factory 2483 | -7/Factory | Reached level 12 2634 | -7/Factory | Discovered new exit (range 5) 2635 | -7/Factory | Identified exit to Factory 2652 | -7/Factory | Upgraded with Utility slot (x1) 2780 | -7/Factory | Identified exit to Lower Caves 2780 | -7/Factory | Reached level 13 2848 | -7/Factory | Fabricated M-14 Sweeper? 2962 | -7/Factory | Identified exit to Garrison 2962 | -7/Factory | Entered Garrison 2985 | -7/Garrison | Discovered new exit (range 14) 2994 | -7/Garrison | Triggered checkpoint 2994 | -7/Garrison | Garrison Relay disabled 3055 | -7/Garrison | Discovered new exit (range 8) 3121 | -7/Garrison | Discovered new exit (range 15) 3129 | -7/Garrison | Identified exit to Factory 3130 | -7/Garrison | Expanded RIF knowledge: Coupler Efficiency 3130 | -7/Garrison | Reached level 14 3131 | -7/Garrison | Entered Factory 3150 | -7/Factory | Core integrity fell below 50% 3287 | -7/Factory | Repaired Maneuvering Thrusters 3318 | -7/Factory | Discovered exit to Factory (range 4) 3363 | -7/Factory | Discovered exit to Lower Caves (range 11) 3387 | -7/Factory | Upgraded with Weapon slot (x1) 3404 | -7/Factory | Core integrity fell below 20% 3631 | -7/Factory | Build established: Hauler-Scout 3760 | -7/Factory | Reached level 15 3895 | -7/Factory | Discovered exit to Factory (range 4) 4052 | -7/Factory | Reached level 16 4069 | -7/Factory | Garrison activated, responded to threat 4257 | -7/Factory | Entered Lower Caves 4265 | -7/Lower Caves | Upgraded with Weapon slot (x1) 4267 | -7/Lower Caves | Found Prototype Device 4355 | -7/Lower Caves | Learned Factory stockpile data 4397 | -7/Lower Caves | Learned 4 Factory zone layouts 4482 | -7/Lower Caves | Learned Research trap positions 4482 | -7/Lower Caves | Learned Research security intel 4482 | -7/Lower Caves | Learned Extension security intel 4482 | -7/Lower Caves | Learned Research garrison access intel 4525 | -7/Lower Caves | Learned Factory emergency access door positions 4564 | -7/Lower Caves | Discovered new exit (range 8) 4566 | -7/Lower Caves | Identified exit to Lower Caves 4578 | -7/Lower Caves | Entered another Lower Caves area 4589 | -7/Lower Caves | Discovered exit to Factory (range 13) 4596 | -7/Lower Caves | Learned 8 Research zone layouts 4596 | -7/Lower Caves | Learned Factory stockpile data 4596 | -7/Lower Caves | Learned Factory security intel 4596 | -7/Lower Caves | Learned Armory garrison access intel 4648 | -7/Lower Caves | Learned Factory terminal intel 4662 | -7/Lower Caves | Discovered new exit (range 5) 4664 | -7/Lower Caves | Identified exit to Data Miner 4678 | -7/Lower Caves | Mic. Nuclear Core stolen by Master Thief 4709 | -7/Lower Caves | Entered Data Miner 4709 | -7/Data Miner | Discovered new exit (range 6) 4711 | -7/Data Miner | Reached level 17 4714 | -7/Data Miner | Met Data Miner 4721 | -7/Data Miner | Learned location of Section 7 (-3) 4721 | -7/Data Miner | Acquired the access code to Warlord's prototype stash 4726 | -7/Data Miner | Received God Mode back door access code from Data Miner 4976 | -7/Data Miner | Identified exit to Proximity Caves 4979 | -7/Data Miner | Entered Proximity Caves 4981 | -6/Proximity Caves | Attracted the attention of an 0b10 checkpoint 4982 | -6/Proximity Caves | Escorted by Enhanced Grunt 5084 | -6/Proximity Caves | Learned Factory emergency access door positions 5150 | -6/Proximity Caves | Spotted B-75 Beast 5222 | -6/Proximity Caves | Received a Behemoth hack from an annoying Tinkerer 5434 | -6/Proximity Caves | Discovered exit to Factory (range 4) 5454 | -6/Proximity Caves | Entered Factory 5456 | -6/Factory | Reached level 18 5459 | -6/Factory | Loaded intel: 20 terminal locations 5459 | -6/Factory | Discovered new exit (range 6) 5461 | -6/Factory | Identified exit to Factory 5519 | -6/Factory | Upgraded with Utility slot (x1) 5521 | -6/Factory | Identified exit to Lower Caves 5555 | -6/Factory | Identified Heart of Steel 5729 | -6/Factory | Spotted B-75 Beast 5772 | -6/Factory | Core integrity fell below 50% 5810 | -6/Factory | Core integrity fell below 20% 5835 | -6/Factory | Entered Lower Caves 6009 | -6/Lower Caves | Destroyed by S-27 Virus with Autogun Last Messages --------------- 05909_ BY-X99(k) destroyed. 05912_ Acquired 24 matter. 05922_ Sneak attack on DF-SC9(S). 05922_ Destroyed Neutrino Core. 05922_ Destroyed Med. Treads. 05922_ Destroyed Neutrino Core. 05925_ Sneak attack on DF-SC9(S). 05925_ DF-SC9(S) destroyed. 05927_ Acquired 48 matter. 05974_ Searching scrap... 05974_ Found 31 Matter. 05974_ Found Imp. Hardlight Generator. 05974_ Found Thermal Shield. 05975_ Acquired 31 matter. 05989_ Acquired 40 matter. 05990_ Acquired 83 matter. 05998_ S-27 Virus destroyed. 06004_ VTOL Module self-destruct mechanism malfunctions. 06005_ S-27 Virus IFF system glitched. 06006_ Slug penetrates Wall. Map ----- +----------------------------------------------------+ | ?????#?????#?#????????# ##??# #??#???# | | ??????????#?????#?#??## #### #### | | ????????????????####### ## " * | | ????????????????# ### " ### | | ???????#????????# ##?# #### | | ????????????????# #### ##### #?## | | ?????????????#### #### #???#### ## #### | | ?????????#??## # ### #??????## ### ### | | ?????#??????# #???????###?## #?? | | ????#???????# ##??#??#??????##### #?? | | ???????????## #####????##????????????# #?# | | ???????????# #????#???#??????????????####?? | | ???????????# ######?#####????????#??????#?? | | ???????????## ## ##?###?#####???????##???? | | ?????????#### ##? ##?#???#???#???????? | | ?????????# ## ####?##???#???????? | | ?????# ## ##?#???????????? | | ???? ## ## ##??#??????????? | | ????? #?######## ###?????????????? | | ???? ## ######### #???? ?????????? | | ??????## ??????# ##???#???????????? | | ???????##???#?## !#????????????????? | | ??????????????# # ##%=#???????#????????? | | ???????????#??## # ##??%#????????????????? | | ???????????? # #????#??#?????????????? | | ??????????## ##@ ### #?????????? | | ?????????### ## ## s%% % #?????????? | | ???????????#??## ## "#? ??????????? | | ??????????#???### #####;; s ##????????????? | | ???????????????###### ?#???## #?? ??????????? | | ??????????????? ?? ? ####????# %##? ???????????? | | ??????????? ??? ?? ? ??#??#??????###?????????????? | | ????????????? s????? ???#??#????##???k? ?????????? | | ????????????#?? ?Y???????#????##?#??#????????????? | | ???????????????? ???###??##?#?????#?#???????????? | | ?????????????#? ?????####????????????????????????? | | ????????????????? ??g???##??#???#?##?#???????????? | | ??????????????#?#?#????#??#??##?##???????????????? | | ??????????????????????????????#???#??????????????? | | ????????????????#???#?#??#?#???#?#???????????????? | | ??????????????????????#??##?#??#?????????????????? | | ????????????????????##???????????????????????????? | | ?????????????????????????????????????????????????? | | ?????????????????????????????????????????????????? | | ?????????????????????????????????????????????????? | | ?????????????????????????????????????????????????? | | ?????????????????????????????????????????????????? | | ?????????????????????????????????????????????????? | | ?????????????????????????????????????????????????? | | ?????????????????????????????????????????????????? | +----------------------------------------------------+ Best States ------------- Heat Dissipation 55 Energy Generation 51 Energy Capacity 520 Matter Stores 300 Matter Capacity 300 Sight Range 16 Robot Scan Range 16 Terrain Scan Range 16 Terrain Scan Density 210 Jamming Range 12 Evasion (%) 71 Salvage Targeting 1 Item Schematics ----------------- Rocket Launcher | -8/Materials | Scanalyzed System Backup Module | -7/Factory | Scanalyzed Recalibrator | -7/Factory | Scanalyzed Combat Drone Bay | -7/Data Miner | Free Lgt. Regenerative Plating | -7/Data Miner | Free Exp. Flexi-carbon Leg | -7/Data Miner | Free Exp. ECM Suite | -7/Data Miner | Free Plasma Sword | -7/Data Miner | Free Robot Schematics ------------------ S-27 Virus | -7/Data Miner | Free G-50 Soldier | -7/Data Miner | Free G-67 Veteran | -7/Data Miner | Free L-41 Fighter | -7/Data Miner | Free P-70 Sage | -7/Data Miner | Free I-36 Angel | -7/Data Miner | Free Fabricated ------------ M-14 Sweeper | x1 | -7/Factory | Preloaded Alien Tech Used ----------------- None Achievements -------------- Can't Catch Me Deadly Force Challenges ------------ None RPGLIKE | -11 -10 -10 -9 -9 -9 -8 -8 -8 -7 -7 -7 -7 -7 -7 -6 -6 -6 --------- Run | Scr Mat Min Mat Min Exi Min Mat Gar Fac Gar Fac Low Low Dat Pro Fac Low Levels Raised 17 | . 1 1 4 1 . 1 1 1 2 1 2 . . 1 . 1 . XP Earned 29643 | 3000 2825 1175 6094 1088 243 1425 2010 774 2715 1200 3662 486 170 204 1121 1159 292 XP Spent 27870 | . 2870 300 2650 . 2400 . 7950 . 2020 . 6050 1100 . . . 2530 . Upgrades 38 | . 9 1 4 . 3 . 8 . 5 . 4 1 . . . 3 . Power Slot 1 | . . . . . . . 1 . . . . . . . . . . Propulsion Slot 4 | . . . . . 3 . 1 . . . . . . . . . . Utility Slot 6 | . 2 . 1 . . . 1 . 1 . . . . . . 1 . Weapon Slot 3 | . 1 . . . . . . . . . 1 1 . . . . . Heat Dissipation 5 | . . . . . . . . . 4 . . . . . . 1 . Energy Generation 4 | . . . 1 . . . 3 . . . . . . . . . . Mass Support 4 | . 2 1 . . . . . . . . . . . . . 1 . Inventory Capacity 8 | . 1 . 2 . . . 2 . . . 3 . . . . . . Terrain Scan Density 2 | . 2 . . . . . . . . . . . . . . . . Ranged Accuracy 1 | . 1 . . . . . . . . . . . . . . . . Protomatter Created 1180 | . 170 . 356 . . 41 52 . 175 . 262 52 . . 45 . 27 Integrity Restored 3424 | . 321 . 767 96 . 42 156 . 515 . 1140 282 . . 105 . . Core 3073 | . 321 . 661 96 . 42 156 . 459 . 989 244 . . 105 . . Parts 351 | . . . 106 . . . . . 56 . 151 38 . . . . . Protomatter Decayed 430 | . 63 . 152 . . 27 . . 1 . 98 58 . . 31 . . Game ------ Seed HugeDeliveryBoosters Manual? 0 Play Time 02:06:30 Cumulative 151.7 hours Start 2019.12.23 @ 11:24:25 End 2019.12.23 @ 16:27:15 Sessions 6 Manual Loads 0 Difficulty Rogue Special Mode Winter2019/RPGLIKE Game No. 198 Rogue 187 Adventurer 11 Explorer 0 Win Type - Total 0 Types 0/0/0/0/0/0/0 Lore% 47 Gallery% 59 Achievement% 42 Wizard Run 0 Options --------- ASCII 0 Keyboard 1 Movement Numpad Keybinds 0 Fullscreen 1 Font 12/Terminus Map View 83x54 Tactical HUD 1 Map Filters NONE Filters NONE Steam 1 RUN: d3e7c793-4417-4046-bec6-96b7840c0a1a